Cogmind - Beta 13 *** ADVENTURER MODE // 2024.04.26 @ 22:40:20 Player: GayPredator Result: Self-destructed Performance ------------- Evolutions (3) 1500 Regions Visited (8) 1600 Robots Destroyed (77) 385 Value Destroyed (2117) 2117 Prototype IDs (5) 100 Alien Tech Used (0) 0 Bonus (500) 500 TOTAL SCORE: 6202 Bonus ------- Entered DSFs 500 Cogmind --------- Core Integrity 264/700 Matter 88/300 Energy 17/100 System Corruption 9% Temperature Cool (0) Movement Core (50) Location -7/DSF Parts ------- > --- POWER (1) -------- (None) > --- PROPULSION (4) --- (None) > --- UTILITY (5) ------ (None) > --- WEAPON (3) ------- (None) > --- INVENTORY (5) ---- Light Nuclear Core Enhanced Nuclear Core Large Storage Unit Experimental Sensor Array Peak State ------------ > --- POWER ------------ Enhanced Nuclear Core > --- PROPULSION ------- Armored Treads Armored Treads Armored Treads Armored Treads > --- UTILITY ---------- Large Storage Unit Experimental Sensor Array Improved Signal Interpreter Terrain Scanner Improved Terrain Scan Processor > --- WEAPON ----------- Shock Rifle Enhanced Autogun Improved Grenade Launcher > --- INVENTORY -------- Enhanced Nuclear Core Improved Heat Sink Seismic Detector ECM Suite Reaction Control System Hardened Medium Armor Plating Hardened Medium Armor Plating Hardlight Generator Hacking Suite Shock Rifle Autogun Minigun Flak Cannon [Rating: 47] Favorites ----------- Power Enhanced Nuclear Core Engine Deuterium Engine Power Core Enhanced Nuclear Core Propulsion Armored Treads Treads Armored Treads Leg Aluminum Leg Flight Unit Cesium-ion Thruster Utility Large Storage Unit Device Experimental Sensor Array Storage Large Storage Unit Processor Improved Signal Interpreter Protection Improved Light Armor Plating Weapon Improved Grenade Launcher Energy Gun Shock Rifle Ballistic Gun Autogun Ballistic Cannon Flak Cannon Launcher Improved Grenade Launcher Piercing Weapon Spear Build | -11 -10 -9 -9 -8 -7 -7 -7 -7 ------- Run | Yrd Mat Mat Min Mat Fac Was Fac DSF Slots Evolved 6 | . . 2 . 2 2 . . . Power . | . . . . . . . . . Propulsion 2 | . . 2 . . . . . . Utility 3 | . . . . 1 2 . . . Weapon 1 | . . . . 1 . . . . Parts Attached 80 | 6 4 7 3 22 22 1 8 7 Power 11 | 1 . 2 . 3 1 . 4 . Engine 6 | 1 . 2 . 3 . . . . Core 5 | . . . . . 1 . 4 . Reactor . | . . . . . . . . . Propulsion 19 | 2 . 2 . 5 4 1 1 4 Treads 10 | . . . . 5 4 1 . . Leg 6 | 2 . 2 . . . . . 2 Wheel . | . . . . . . . . . Hover . | . . . . . . . . . Flight 3 | . . . . . . . 1 2 Utility 25 | 1 3 2 1 7 8 . 3 . Device 14 | . 1 . 1 4 6 . 2 . Storage 3 | 1 1 1 . . . . . . Processor 4 | . . . . 2 1 . 1 . Hackware . | . . . . . . . . . Protection 4 | . 1 1 . 1 1 . . . Artifact . | . . . . . . . . . Weapon 25 | 2 1 1 2 7 9 . . 3 Energy Gun 4 | 1 . . . 1 2 . . . Energy Cannon . | . . . . . . . . . Ballistic Gun 15 | 1 1 1 1 5 3 . . 3 Ballistic Cannon 2 | . . . . . 2 . . . Launcher 3 | . . . 1 1 1 . . . Special Weapon . | . . . . . . . . . Impact Weapon . | . . . . . . . . . Slashing Weapon . | . . . . . . . . . Piercing Weapon 1 | . . . . . 1 . . . Special Melee Weapon . | . . . . . . . . . Unidentified Prototypes 3 | . . . 1 1 1 . . . Parts Lost 9 | . . . . 3 2 2 . 2 Power 1 | . . . . 1 . . . . Propulsion 2 | . . . . . 1 1 . . Utility 2 | . . . . . . . . 2 Weapon 4 | . . . . 2 1 1 . . Highest Loss Streak 2 | . . . . 1 1 2 . 2 To Critical Strikes . | . . . . . . . . . Average Slot Usage (%) 94 | . 99 90 100 99 95 68 27 22 Engine 5 | . 14 10 11 9 1 . . . Core 2 | . . . . . 5 4 1 . Treads 24 | . . . . 33 28 19 . . Leg 6 | . 28 34 44 2 . . . 1 Device 12 | . 11 11 11 8 15 16 13 9 Storage 7 | . 2 6 11 9 7 4 . . Processor 7 | . . . . 6 11 4 6 5 Protection 2 | . 13 4 . 3 1 . . . Energy Gun 1 | . 6 . . . 2 . . . Ballistic Gun 12 | . 21 22 21 17 4 4 . 1 Ballistic Cannon 2 | . . . . . 6 4 . . Launcher 5 | . . . . 9 4 . . . Piercing Weapon 1 | . . . . . 2 4 . . Naked Turns 42 | . . . . . . 28 12 2 Heaviest Build 56 | 11 29 28 30 47 56 44 10 4 Greatest Support 83 | 20 20 40 40 80 83 83 5 17 Greatest Overweight (x) 1 | 1 1 . . 1 1 1 1 . Average Overweight (x) . | . . . . . . . . . Largest Inventory Capacity 15 | 8 15 15 15 15 15 15 5 5 Average Capacity 13 | 7 6 10 15 15 15 11 5 5 Most Carried 15 | 4 5 5 8 13 15 15 5 5 Average Carried 10 | 2 4 4 6 10 12 11 3 3 Final Capacity 15 | 8 5 15 15 15 15 5 5 5 Final Carried 15 | 4 5 5 8 12 15 5 5 4 Class Distribution -------------------- 47% | Skirmisher 30% | Mutant 10% | Tank 7% | Scavenger-Mutant Dominant Class ---------------- Mutant | -10/Materials Scavenger-Mutant | -9/Materials Scavenger-Mutant | -9/Mines Skirmisher | -8/Materials Skirmisher | -7/Factory Mutant | -7/Waste Mutant | -7/Factory Mutant | -7/DSF Resources | -11 -10 -9 -9 -8 -7 -7 -7 -7 ----------- Run | Yrd Mat Mat Min Mat Fac Was Fac DSF Matter Collected 1763 | 176 57 183 84 491 772 . . . Remotely . | . . . . . . . . . Salvage Created 2183 | . 169 247 . 656 1111 . . . Parts 141 | . 11 21 . 52 57 . . . Haulers Intercepted 2 | . . . . 1 1 . . . Recyclers Shooed 3 | . . 1 . . 2 . . . Parts Field Recycled . | . . . . . . . . . Retrieved Matter . | . . . . . . . . . Parts Self-Destructed . | . . . . . . . . . Prevented . | . . . . . . . . . Kills | -11 -10 -9 -9 -8 -7 -7 -7 -7 ------- Run | Yrd Mat Mat Min Mat Fac Was Fac DSF Combat Hostiles Destroyed 48 | . 7 9 . 15 17 . . . Melee 11 | . . . . . 11 . . . Guns 24 | . 7 9 . 6 2 . . . Cannons 2 | . . . . . 2 . . . AOE 11 | . . . . 9 2 . . . Classes Destroyed 11 | . 3 1 . 4 3 . . . Worker 4 | . . . . . 4 . . . Builder 5 | . . . . 3 2 . . . Tunneler 3 | . . . . 3 . . . . Hauler 2 | . . . . 1 1 . . . Recycler 4 | . . . . . 4 . . . Operator 1 | . . . . 1 . . . . Watcher 10 | . 1 1 . 4 4 . . . Swarmer 18 | . 6 6 . 3 3 . . . Grunt 20 | . 1 2 . 8 9 . . . Sentry 7 | . . 1 . 4 2 . . . Programmer 3 | . . . . . 3 . . . Best Kill Streak 7 | . 3 4 . 6 7 . . . Combat Bots Only 5 | . 3 3 . 5 3 . . . Max Kills in Single Turn 6 | . 1 2 . 2 6 . . . Gunslinging 1 | . . 1 . . . . . . Exploded 2 | . . . . 2 1 . . . Melee 1 | . . . . . 1 . . . Uniques/NPCs Destroyed . | . . . . . . . . . Combat | -11 -10 -9 -9 -8 -7 -7 -7 -7 -------- Run | Yrd Mat Mat Min Mat Fac Was Fac DSF Hostile Shots Fired 366 | . 27 64 . 115 120 2 . 38 Missed 137 | . 15 22 . 44 42 . . 14 Damage Taken 2633 | . 72 333 . 998 780 52 . 398 Core 659 | . 12 104 . 107 84 52 . 300 Absorbed by Shields 76 | . . . . . 58 18 . . Ignored by Resistances 775 | . 25 100 . 275 245 19 . 111 Regen/Repaired (Parts) 248 | . . . . . 248 . . . Core Remaining (%) 87 | 100 95 . 74 80 . . . . Volleys Fired 131 | . 14 34 . 54 26 . . 3 Largest 3 | . 2 2 . 3 3 . . 2 Hottest 136 | . 70 43 . 99 136 . . 50 Shots Fired 260 | . 28 68 . 108 51 . . 5 Gun 212 | . 28 68 . 83 28 . . 5 Cannon 15 | . . . . . 15 . . . Launcher 33 | . . . . 25 8 . . . Special . | . . . . . . . . . Kinetic 192 | . 25 68 . 69 25 . . 5 Thermal 17 | . 3 . . 14 . . . . Explosive 33 | . . . . 25 8 . . . Electromagnetic 18 | . . . . . 18 . . . Robot Hit Streak 26 | . 10 26 . 23 10 . . 2 Robot Miss Streak 9 | . 1 5 . 3 9 . . 3 Penetration Max . | . . . . . . . . . Secondary Targets 7 | . 2 2 . 3 . . . . Max Gunslinging Chain 1 | . 1 1 . 1 . . . . Shots Hit Robots 213 | . 22 51 . 78 60 . . 2 Core Hits 133 | . 12 16 . 55 49 . . 1 Critical Kills 1 | . . 1 . . . . . . Critical Parts Destroyed 1 | . 1 . . . . . . . Critical Strikes 4 | . 1 1 . . 2 . . . Destroy 2 | . 1 1 . . . . . . Impale 2 | . . . . . 2 . . . Melee Attacks 29 | . . . . . 29 . . . Impact . | . . . . . . . . . Slashing . | . . . . . . . . . Piercing 29 | . . . . . 29 . . . Sneak Attacks 3 | . . . . . 3 . . . Combat Hostiles . | . . . . . . . . . Follow-up Attacks . | . . . . . . . . . Damage Inflicted 5575 | . 206 511 4 2306 2507 . . 41 Guns 1999 | . 206 494 . 949 317 . . 33 Cannons 240 | . . . . . 240 . . . Explosions 2587 | . . . . 1353 1234 . . . Melee 669 | . . . . . 669 . . . Ramming 80 | . . 17 4 4 47 . . 8 Kinetic 1915 | . 168 494 . 807 413 . . 33 Thermal 456 | . 38 . . 142 276 . . . Explosive 2311 | . . . . 1353 958 . . . Electromagnetic 144 | . . . . . 144 . . . Impact . | . . . . . . . . . Slashing . | . . . . . . . . . Piercing 669 | . . . . . 669 . . . Highest Corruption 9 | . . . . . 5 9 9 9 Average Corruption 4 | . . . . . 3 8 9 9 Corruption Purged . | . . . . . . . . . Corruption Blocked . | . . . . . . . . . Effects 44 | . . . . . 36 2 5 1 Message Errors 8 | . . . . . 6 1 . 1 Matter Fused 16 | . . . . . 14 1 1 . Heat Flow Errors 5 | . . . . . 4 . 1 . Energy Discharges 5 | . . . . . 3 . 2 . Parts Rejected 1 | . . . . . 1 . . . Parts Fused 2 | . . . . . 2 . . . Data Loss (minor) 5 | . . . . . 4 . 1 . Data Loss (major) 1 | . . . . . 1 . . . Misfires 1 | . . . . . 1 . . . Overload Shots . | . . . . . . . . . Overflow Damage 393 | . . . . 16 377 . . . Projectiles . | . . . . . . . . . Explosions 294 | . . . . 16 278 . . . Melee 99 | . . . . . 99 . . . Knockbacks 8 | . . . . . 8 . . . Impact . | . . . . . . . . . Kinetic 8 | . . . . . 8 . . . Secondary . | . . . . . . . . . Self-Inflicted Damage 169 | . . . . 118 48 . . 3 Shots 5 | . . . . 3 2 . . . Rammed 8 | . . . . 2 5 . . 1 Targets Rammed 14 | . 1 1 1 2 7 . . 2 Kicked 4 | . 1 1 1 . . . . 1 Crushed 2 | . . . . . 2 . . . Highest Temperature 244 | . 91 26 . 78 244 . 101 . Average Temperature 40 | . 19 7 . 21 77 . 56 . Received Heat Transfer 883 | . 6 111 . 540 226 . . . Siege Activations . | . . . . . . . . . Robots Corrupted . | . . . . . . . . . Combat Hostiles . | . . . . . . . . . Parts Fried . | . . . . . . . . . Impact Corruptions . | . . . . . . . . . Robots Melted . | . . . . . . . . . Combat Hostiles . | . . . . . . . . . Parts Melted 1 | . . . . . 1 . . . Heat Transferred 636 | . 111 . . 325 200 . . . Parts Sabotaged . | . . . . . . . . . Parts Stolen . | . . . . . . . . . Parts Stripped . | . . . . . . . . . Power Chain Reactions . | . . . . . . . . . Alert | -11 -10 -9 -9 -8 -7 -7 -7 -7 ------- Run | Yrd Mat Mat Min Mat Fac Was Fac DSF Peak Influence 365 | . 246 365 120 320 217 13 4 1 Initial 120 | . . 88 120 39 . 13 . 1 Average 96 | . 77 225 120 120 71 7 . . Maximum Alert Level 1 | . 1 1 . 1 1 . . . Low Security (%) 85 | 100 88 50 100 75 95 100 100 100 Level 1 14 | . 11 50 . 24 4 . . . Level 2 . | . . . . . . . . . Level 3 . | . . . . . . . . . Level 4 . | . . . . . . . . . Level 5 . | . . . . . . . . . High Security . | . . . . . . . . . Max Security . | . . . . . . . . . Squads Dispatched 8 | . . . . . 7 . . 1 Investigation 3 | . . . . . 3 . . . Extermination 4 | . . . . . 4 . . . Reinforcement 1 | . . . . . . . . 1 Assault . | . . . . . . . . . Garrison . | . . . . . . . . . Intercept . | . . . . . . . . . Searches Triggered . | . . . . . . . . . Construction Impeded . | . . . . . . . . . Haulers Reinforced . | . . . . . . . . . Active Scanning Responses . | . . . . . . . . . Cargo Convoy Interrupts . | . . . . . . . . . Stealth | -11 -10 -9 -9 -8 -7 -7 -7 -7 --------- Run | Yrd Mat Mat Min Mat Fac Was Fac DSF Distress Signals 4 | . 2 1 . . 1 . . . Communications Jammed . | . . . . . . . . . Distress Signals . | . . . . . . . . . Times Spotted 85 | . 14 14 . 25 22 5 . 5 Peak Tracking Total 8 | . 5 4 . 8 4 6 . 5 Tactical Retreats 1 | . 1 . . . . . . . Traps | -11 -10 -9 -9 -8 -7 -7 -7 -7 ------- Run | Yrd Mat Mat Min Mat Fac Was Fac DSF Traps Triggered 2 | . . . . . 2 . . . Indirectly . | . . . . . . . . . Trap Hack Attempts . | . . . . . . . . . Triggered . | . . . . . . . . . Disarmed . | . . . . . . . . . Reprogrammed . | . . . . . . . . . Reused . | . . . . . . . . . Traps Extracted . | . . . . . . . . . Installed . | . . . . . . . . . Triggered . | . . . . . . . . . Machines | -11 -10 -9 -9 -8 -7 -7 -7 -7 ---------- Run | Yrd Mat Mat Min Mat Fac Was Fac DSF Machines Disabled 14 | . . . . 2 12 . . . Max in Single Turn 7 | . . . . 1 7 . . . Machines Repaired . | . . . . . . . . . Machines Dismantled . | . . . . . . . . . Machines Sabotaged . | . . . . . . . . . Overloaded Fab Kills . | . . . . . . . . . Hacking | -11 -10 -9 -9 -8 -7 -7 -7 -7 --------- Run | Yrd Mat Mat Min Mat Fac Was Fac DSF Machines Accessed 25 | . 3 2 . 7 12 . 1 . Terminals 15 | . 2 2 . 6 4 . 1 . Fabricators 3 | . . . . . 3 . . . Repair Stations 2 | . . . . . 2 . . . Recycling Units 4 | . 1 . . . 3 . . . Scanalyzers 1 | . . . . 1 . . . . Garrison Access . | . . . . . . . . . Total Hacks 58 | . 6 5 . 19 26 . 2 . Successful 32 | . 4 2 . 11 14 . 1 . Failed 26 | . 2 3 . 8 12 . 1 . Catastrophic 5 | . . 1 . 2 2 . . . Database Lockouts . | . . . . . . . . . Manual 9 | . 4 2 . 1 2 . . . Terminals 35 | . 4 5 . 17 7 . 2 . Fabricators 8 | . . . . . 8 . . . Repair Stations 5 | . . . . . 5 . . . Recycling Units 8 | . 2 . . . 6 . . . Scanalyzers 2 | . . . . 2 . . . . Garrison Access . | . . . . . . . . . Terminal Hacks 17 | . . 2 . 9 5 . 1 . Record 2 | . . . . 1 1 . . . Prototype ID Bank 2 | . . . . 1 1 . . . Open DSF 3 | . . . . . 2 . 1 . Emergency Access Points 1 | . . . . 1 . . . . Alert Level 2 | . . 1 . 1 . . . . Unreport Threat 1 | . . . . 1 . . . . Locate Traps 2 | . . . . 1 1 . . . Security Status 1 | . . . . 1 . . . . Patrol Status 2 | . . . . 2 . . . . Reinforcement Status 1 | . . 1 . . . . . . Fabricator Hacks 4 | . . . . . 4 . . . Load Schematic 2 | . . . . . 2 . . . Build 2 | . . . . . 2 . . . Repair Station Hacks 3 | . . . . . 3 . . . Scan Component 2 | . . . . . 2 . . . Repair 1 | . . . . . 1 . . . Recycling Unit Hacks 3 | . 2 . . . 1 . . . Report Inventory 1 | . 1 . . . . . . . Retrieve Components 2 | . 1 . . . 1 . . . Scanalyzer 2 | . . . . 2 . . . . Insert Component 1 | . . . . 1 . . . . Analyze 1 | . . . . 1 . . . . Garrison Access Hacks . | . . . . . . . . . Unauthorized Hacks 3 | . 2 . . . 1 . . . Terminals 3 | . 2 . . . 1 . . . Botnet 3 | . 2 . . . 1 . . . Fabricators . | . . . . . . . . . Repair Stations . | . . . . . . . . . Recycling Units . | . . . . . . . . . Scanalyzers . | . . . . . . . . . Garrison Access . | . . . . . . . . . Data Cores Recovered 1 | . . . . 1 . . . . Used 1 | . . . . 1 . . . . Hacking Detections 20 | . 1 2 . 6 10 . 1 . Full Trace Events 4 | . . . . 1 3 . . . Feedback Events . | . . . . . . . . . Feedback Blocked . | . . . . . . . . . Robot Schematics Acquired . | . . . . . . . . . Robots Built . | . . . . . . . . . Authchips . | . . . . . . . . . Time . | . . . . . . . . . Total Robot Build Rating . | . . . . . . . . . Part Schematics Acquired 1 | . . . . 1 . . . . Parts Built 2 | . . . . . 2 . . . Authchips . | . . . . . . . . . Time 204 | . . . . . 204 . . . Total Part Build Rating 16 | . . . . . 16 . . . Parts Repaired 1 | . . . . . 1 . . . Time 12 | . . . . . 12 . . . Parts Recycled . | . . . . . . . . . Recycled Matter . | . . . . . . . . . Retrieved Matter . | . . . . . . . . . Retrieved Components 3 | . 2 . . . 1 . . . Parts Scanalyzed 1 | . . . . 1 . . . . Part Schematics Acquired 1 | . . . . 1 . . . . Parts Damaged . | . . . . . . . . . Bothacking | -11 -10 -9 -9 -8 -7 -7 -7 -7 ------------ Run | Yrd Mat Mat Min Mat Fac Was Fac DSF Used RIF Installer . | . . . . . . . . . Robots Hacked . | . . . . . . . . . Non-combat . | . . . . . . . . . Combat . | . . . . . . . . . Robot Hacks Applied . | . . . . . . . . . Relay Couplers Released . | . . . . . . . . . Fabnet Peak Effective % . | . . . . . . . . . Robots Rewired . | . . . . . . . . . Allies Hacked . | . . . . . . . . . Hacks Repelled . | . . . . . . . . . Allies | -11 -10 -9 -9 -8 -7 -7 -7 -7 -------- Run | Yrd Mat Mat Min Mat Fac Was Fac DSF Total Allies . | . . . . . . . . . Largest Group . | . . . . . . . . . Highest-Rated Group . | . . . . . . . . . Highest-Rated Ally . | . . . . . . . . . Total Orders . | . . . . . . . . . Ally Attacks . | . . . . . . . . . Total Damage . | . . . . . . . . . Kills . | . . . . . . . . . Allies Corrupted . | . . . . . . . . . Allies Melted . | . . . . . . . . . Intel | -11 -10 -9 -9 -8 -7 -7 -7 -7 ------- Run | Yrd Mat Mat Min Mat Fac Was Fac DSF Robot Analysis Total . | . . . . . . . . . Derelict Logs Recovered . | . . . . . . . . . Drone Launches . | . . . . . . . . . Drone Recoveries . | . . . . . . . . . Exploration | -11 -10 -9 -9 -8 -7 -7 -7 -7 ------------- Run | Yrd Mat Mat Min Mat Fac Was Fac DSF Turns Passed 5391 | 56 305 298 248 2011 2209 96 129 39 Spaces Moved 3126 | 37 210 158 198 1079 1070 96 238 40 Core 126 | 2 . . . . . 58 66 . Treads 2103 | . . . . 995 1070 38 . . Legs 686 | 35 210 158 198 84 . . . 1 Wheels . | . . . . . . . . . Hover . | . . . . . . . . . Flight 211 | . . . . . . . 172 39 Fastest Speed 35 | 50 120 120 120 120 165 50 35 35 Average Speed 145 | 118 124 120 120 166 168 98 41 37 Slowest Speed 250 | 190 190 120 120 250 250 245 115 130 Overloaded Moves . | . . . . . . . . . Propulsion Burnouts . | . . . . . . . . . Robots Hopped . | . . . . . . . . . Cave-ins Triggered . | . . . . . . . . . Exploration Rate (%) 37 | 5 49 19 40 69 24 93 6 33 Regions Visited 8 Branch Regions 1 Pre-discovered Areas . | . . . . . . . . . Known Exits Taken 2 | . . . . 1 . . 1 . Unknown Exits Taken 4 | 1 1 1 1 . . . . . Scrap Searched 2 | . . . 2 . . . . . Spaces Dug 16 | . . . . 15 1 . . . Terrain Destroyed 342 | . . . . 245 97 . . . Melee 1 | . . . . . 1 . . . Projectile . | . . . . . . . . . AOE 341 | . . . . 245 96 . . . Terrain Rammed . | . . . . . . . . . Walls Destroyed . | . . . . . . . . . Machines Disabled . | . . . . . . . . . Actions | -11 -10 -9 -9 -8 -7 -7 -7 -7 --------- Run | Yrd Mat Mat Min Mat Fac Was Fac DSF Total 3710 | 46 231 209 207 1211 1384 96 267 59 Wait 257 | . . . 2 24 210 . 18 3 Move 3119 | 36 209 157 197 1078 1070 95 237 40 Hop . | . . . . . . . . . Pick Up 34 | 4 . 3 2 13 11 . . 1 Fast Attach 47 | 6 3 6 2 10 9 1 5 5 Attach 23 | . . . . 10 8 . 3 2 Detach 11 | . 1 . 1 4 1 . 3 1 Swap 10 | . 1 1 1 2 5 . . . Drop 35 | . 2 7 1 14 8 . 1 2 Fire 131 | . 14 34 . 54 26 . . 3 Melee 29 | . . . . . 29 . . . Ram 1 | . . . . . . . . 1 Kick 4 | . 1 1 1 . . . . 1 Crush 9 | . . . . 2 7 . . . Escape Stasis . | . . . . . . . . . Rewire . | . . . . . . . . . Trap . | . . . . . . . . . Miscellaneous . | . . . . . . . . . Route ------- -11/Scrapyard -10/Materials -9/Materials (discovered 2 exits: [*Min] / [*Sto]) -9/Mines -8/Materials -7/Factory (discovered 2 exits: [*Fac] / [Low]) -7/Waste -7/Factory -7/DSF History --------- Turn | Location | Event 16 | -11/Scrapyard | Discovered new exit (range 16) 57 | -11/Scrapyard | Entered Materials 303 | -10/Materials | Build established: Mutant 344 | -10/Materials | Discovered new exit (range 15) 362 | -10/Materials | Entered another Materials area 362 | -9/Materials | Evolved 2 slots: Propulsion x2 622 | -9/Materials | Discovered new exit (range 9) 634 | -9/Materials | Discovered new exit (range 16) 660 | -9/Materials | Entered Mines 798 | -9/Mines | YI-UF0 nonchalantly dropped a Grenade Launcher on the ground 808 | -9/Mines | Build established: Scavenger-Mutant 843 | -9/Mines | Found a damaged Exp. Sensor Array with a note attached 847 | -9/Mines | Found Prototype Device 847 | -9/Mines | Identified Exp. Sensor Array 886 | -9/Mines | Discovered new exit (range 12) 896 | -9/Mines | Assembled infested the area 901 | -9/Mines | Assisted by a Guerilla fighting off Assembled 908 | -9/Mines | Entered Materials 908 | -8/Materials | Evolved 2 slots: Utility x1, Weapon x1 1347 | -8/Materials | Build established: Tank 1925 | -8/Materials | Discovered new exit (range 11) 1939 | -8/Materials | Build established: Skirmisher 2917 | -8/Materials | Identified exit to Factory 2919 | -8/Materials | Entered Factory 2919 | -7/Factory | Evolved 2 slots: Utility x2 4517 | -7/Factory | Fabricated Exp. Sensor Array? 4520 | -7/Factory | Build established: Mutant 4770 | -7/Factory | Repaired Arm. Treads 4933 | -7/Factory | Fabricated Exp. Sensor Array? 5087 | -7/Factory | Discovered new exit (range 16) 5101 | -7/Factory | Discovered new exit (range 14) 5128 | -7/Factory | Sucked down chute 5128 | -7/Factory | Entered Waste 5143 | -7/Waste | EMP discharged 5155 | -7/Waste | Spotted C-40 Crusher 5184 | -7/Waste | Crushed by Compactor (1 part destroyed, 2 dropped) 5189 | -7/Waste | Spotted C-40 Crusher 5195 | -7/Waste | Crushed by Compactor (1 part destroyed, 2 dropped) 5196 | -7/Waste | Spotted C-40 Crusher 5196 | -7/Waste | Released all parts (8) 5197 | -7/Waste | Spotted C-40 Crusher 5200 | -7/Waste | Spotted C-40 Crusher 5217 | -7/Waste | Discovered new exit (range 13) 5224 | -7/Waste | Entered Factory 5352 | -7/Factory | Identified exit to DSF 5353 | -7/Factory | Entered DSF 5376 | -7/DSF | Additional patrols routed to DSF 5388 | -7/DSF | Core integrity fell below 50% 5392 | -7/DSF | Self-destructed Last Messages --------------- 05370_ Enh. Autogun severed. 05371_ Acquired Cesium-ion Thruster. 05372_ X-57 Shotgunner springs to life. 05372_ Reaction Control System destroyed. 05373_ Acquired Enh. Autogun. 05376_ CKWFTIYWCSY|9%FTXMF::CCIF%ZYPQHX 05376_ Hostiles detected in DSF, routing additional patrols. 05377_ Cesium-ion Thruster severed. 05377_ Acquired Cesium-ion Thruster. 05378_ Enh. Autogun severed. 05381_ Imp. Signal Interpreter destroyed. 05381_ Critical hit (Blast). 05382_ Acquired Titanium Leg. 05386_ Dropped Cesium-ion Thruster. 05389_ Knocked back. 05389_ Titanium Leg severed. 05390_ Kicked C-17 Slicer. 05390_ Titanium Leg severed. 05391_ Slammed into C-17 Slicer. Map ----- +----------------------------------------------------+ | | | | | | | | | ?????????????????????????????????????? | | ?????????????????????????????????????? | | ?????????????????????????????????????? | | ?????????????????????????????????????? | | ?????????????????????????????????????? | | ?????????????????????????????????????? | | ?????????????????????????????????????? | | ?????????????????????????????????????? | | ?????????????????????????????????????? | | ?????????????????????????????????????? | | ?????????????????????????????????????? | | ?????????????????????????????????????? | | ?????????????????????????????????????? | | ?????????????????????????????????????? | | ?????????????????????????????????????? | | ?????????????????????????????????????? | | ?????????????????????????????????????? | | ?????????????????????????????????????? | | ?????????????????????????????????????? | | ?????????????????????????????????????? | | ??????###########???#????????????????? | | ??????#!! ##@c=#?!!#????????????????? | | ??????#!! ##cc=;!!!## #?????????? | | ??????#!!% %%= ????????? | | ??????#!! x ^ H ????????? | | ??????#!! ^^ ????????? | | ??????#]] ## #!!!## a#?????????? | | ??????#]] ## #!!!#?? ##?????????? | | ??????### ######?###???? #??????????? | | ???????# !!#????????????]??????????? | | ???????# !#???????????????????????? | | ???????# * !!#???????????????????????? | | ???????## [###???????????????????????? | | ???????#! !!#???????????????????????? | | ???????#! !!#???????????????????????? | | ???????## ######????????????????????? | | ??????### ##?!!#??!#????????????????? | | ????###"" ##! #!!!### #??????????? | | ???#""""" ????????? | | ???#"##"" [ ????????? | | ??????#"""""##! #!!!#]] #????????? | | ??????#"""""#?###???#????????????????? | | ??????####"##????????????????????????? | | ?????????#"#?????????????????????????? | | ?????????""#?????????????????????????? | | ?????????????????????????????????????? | +----------------------------------------------------+ Best States ------------- Heat Dissipation 34 Energy Generation 17 Energy Capacity 300 Matter Stores 300 Matter Capacity 300 Sight Range 16 Robot Scan Range 20 Terrain Scan Range 14 Terrain Scan Density 110 ECM Strength 1 Armor Coverage 225 Resistance: KI 20 Resistance: TH 20 Resistance: EX 20 Resistance: EM 20 Resistance: I 20 Resistance: S 20 Resistance: P 20 Evasion (%) 71 Recoil Reduction 4 Offensive Hacking 10 Item Schematics ----------------- Exp. Sensor Array | -8/Materials | Scanalyzed Robot Schematics ------------------ None Fabricated ------------ Exp. Sensor Array | x1 | -7/Factory Exp. Sensor Array | x1 | -7/Factory Alien Tech Used ----------------- None Achievements -------------- None Challenges ------------ None Game ------ Seed TerrabombTerrainClaws Manual? 0 Play Time 00:57:54 Cumulative 43.5 hours Start 2024.04.26 @ 21:24:11 End 2024.04.26 @ 22:40:20 Sessions 1 Manual Loads 0 Difficulty Adventurer Special Mode None Game No. 31 Rogue 0 Adventurer 24 Explorer 7 Win Type - Total 0 Types 0/0/0/0/0/0/0/0/0 Lore% 13 Gallery% 44 Achievement% 36 Wizard Run 0 Options --------- Layout 1 ASCII 0 Keyboard 0 Movement Mouse Keybinds 0 Fullscreen 1 Font 16/SmallcapsGlow Map View 50x40 Zoom Use 0% Tactical HUD 1 Map Filters NONE Filters NONE Steam SD RUN: e442eaf5-18b3-45f1-a0ee-995076b4be6c